bitfinex/quotes_SOLUSD_20220109
["timestamp","ask_amount","ask_price","bid_price","bid_amount"]
[1641703195698,50.53654281,143.18,143.08,49.5033497]
[1641703195899,50.53654281,143.18,143.09,0.26]
[1641703196101,50.53654281,143.18,143.09,3.26]
[1641703196302,50.53654281,143.18,143.11,10.4806]
[1641703196802,26.76044281,143.18,143.09,36.4189]
[1641703197002,24.8196,143.18,143.09,36.4189]
[1641703197202,24.8196,143.18,143.09,33.4189]
[1641703197403,10.4829,143.17,143.09,10.12]
[1641703198542,3.0,143.16,143.09,10.12]
[1641703198833,10.4846,143.15,143.09,10.12]
[1641703200431,1.94084281,143.17,143.09,10.12]
[1641703201032,1.94084281,143.17,143.1,0.26]
[1641703201233,1.94084281,143.17,143.12,10.4803]
[1641703201633,25.43844281,143.2,143.12,10.4803]
[1641703201831,25.43844281,143.2,143.1,22.6965]
[1641703202031,25.43844281,143.2,143.1,25.6965]
[1641703202231,25.43844281,143.2,143.1,22.6965]
[1641703202835,10.4825,143.17,143.1,22.6965]
[1641703203233,1.94084281,143.18,143.1,22.6965]
[1641703203532,1.94084281,143.18,143.11,20.8606]
[1641703203733,1.94084281,143.18,143.11,23.8606]
[1641703203936,1.94084281,143.19,143.11,23.8606]
[1641703204134,1.94084281,143.19,143.11,10.38]
[1641703204533,1.94084281,143.19,143.11,10.12]
[1641703204935,3.0,143.18,143.11,10.12]
[1641703205935,10.4828,143.17,143.11,10.12]
[1641703207138,10.4828,143.17,143.08,61.7766497]
[1641703207340,10.4828,143.17,143.08,72.2597497]
[1641703207341,12.42364281,143.17,143.08,72.2597497]
[1641703207542,12.42334281,143.17,143.08,72.2597497]
[1641703207741,1.94084281,143.17,143.08,72.2597497]
[1641703208041,1.94084281,143.17,143.08,61.7766497]
[1641703208443,1.94084281,143.17,143.09,10.4819]
[1641703209146,1.94084281,143.17,143.09,33.8984]
[1641703209780,1.94084281,143.17,143.09,23.4165]
[1641703210147,1.94084281,143.17,143.1,3.0]
[1641703211147,1.94084281,143.17,143.11,10.4809]
[1641703211348,1.94084281,143.17,143.1,3.0]
[1641703211546,1.94084281,143.17,143.09,23.4165]
[1641703211947,1.94084281,143.16,143.09,23.4165]
[1641703212746,1.94084281,143.15,143.09,23.4165]
[1641703212947,1.94084281,143.15,143.09,33.8989]
[1641703213446,1.94084281,143.16,143.09,33.8989]
[1641703215449,1.94084281,143.16,143.1,3.0]
[1641703215650,1.94084281,143.16,143.11,10.4812]
[1641703215850,1.94084281,143.16,143.1,3.0]
[1641703216050,1.94084281,143.16,143.09,23.4165]
[1641703216653,1.94084281,143.14,143.08,39.0201497]
[1641703217452,1.94084281,143.13,143.08,39.0201497]
[1641703220056,1.94084281,143.13,143.08,49.5034497]
[1641703220256,12.42644281,143.13,143.08,10.12]
[1641703220457,10.4856,143.13,143.08,10.12]
[1641703220657,10.4856,143.13,143.03,25.54851239]
[1641703220658,10.4856,143.13,143.05,10.12]
[1641703220861,3.0,143.12,143.05,10.12]
[1641703221263,4.94084281,143.12,143.05,10.12]
[1641703221465,10.4877,143.1,143.05,10.12]
[1641703221662,3.0,143.11,143.05,10.12]
[1641703221864,3.03211428,143.09,143.05,10.12]
[1641703222065,1.94084281,143.12,143.05,10.12]
[1641703222466,12.42684281,143.12,143.05,10.12]
[1641703224163,12.42684281,143.12,143.05,20.6056]
[1641703224364,1.94084281,143.12,143.05,20.6056]
[1641703226294,10.4859,143.12,143.05,20.6056]
[1641703226497,1.94084281,143.13,143.05,20.6056]
[1641703227095,1.94084281,143.13,143.06,23.472]
[1641703227297,12.42624281,143.13,143.06,33.9568]
[1641703228301,1.94084281,143.13,143.06,33.9568]
[1641703228698,1.94084281,143.13,143.06,44.0768]
[1641703229200,1.94084281,143.13,143.07,3.0]
[1641703229397,1.94084281,143.13,143.08,10.4832]
[1641703230999,1.94084281,143.13,143.09,3.0]
[1641703231199,1.94084281,143.13,143.09,13.4825]
[1641703231399,1.94084281,143.13,143.09,10.4825]
[1641703231801,1.94084281,143.13,143.06,33.592]
[1641703232200,1.94084281,143.13,143.07,10.4837]
[1641703233204,1.94084281,143.14,143.07,10.4837]
[1641703233806,1.94084281,143.14,143.09,10.4821]
[1641703235206,1.94084281,143.14,143.06,23.472]
[1641703235406,10.10784281,143.14,143.06,23.472]
[1641703236208,20.59254281,143.14,143.06,23.472]
[1641703236407,1.94084281,143.12,143.06,23.472]
[1641703238410,1.94084281,143.12,143.06,33.9568]
[1641703238610,1.94084281,143.12,143.06,23.472]
[1641703239411,12.42644281,143.12,143.06,23.472]
[1641703242011,3.0,143.11,143.06,23.472]
[1641703242211,15.42764281,143.11,143.06,23.472]
[1641703242413,12.42764281,143.11,143.06,23.472]
[1641703244514,1.94084281,143.11,143.06,23.472]
[1641703245514,1.94084281,143.11,143.07,10.12]
[1641703246116,1.94084281,143.13,143.07,10.12]
[1641703246817,1.94084281,143.13,143.07,20.604]
[1641703247018,1.94084281,143.12,143.07,20.604]
[1641703247717,1.94084281,143.12,143.07,10.12]
[1641703248419,12.42684281,143.12,143.07,10.12]
[1641703248618,1.94084281,143.11,143.07,10.12]
[1641703251948,1.94084281,143.11,143.07,20.6041]
[1641703253055,1.94084281,143.12,143.07,20.6041]
[1641703253849,3.9536612,143.15,143.08,30.0]
[1641703254050,3.9536612,143.15,143.09,10.12]
[1641703254250,3.9536612,143.15,143.12,10.475]
[1641703254449,20.22289104,143.18,143.13,27.96310038]
[1641703254651,7.93142462,143.17,143.13,30.96310038]
[1641703254850,7.93142462,143.17,143.13,41.08310038]
[1641703255052,7.93142462,143.17,143.14,35.1758]
[1641703255251,7.93142462,143.17,143.15,20.5956]
[1641703255450,7.93142462,143.17,143.15,23.5956]
[1641703255655,3.96571231,143.17,143.15,20.5956]
[1641703255851,33.71407224,143.25,143.16,3.0]
[1641703256050,33.71407224,143.25,143.15,20.5956]
[1641703256051,3.0,143.24,143.15,20.5956]
[1641703256555,14.44271231,143.23,143.15,20.5956]
[1641703257352,3.0,143.24,143.15,20.5956]
[1641703257553,3.0,143.24,143.16,3.0]
[1641703257754,29.74835993,143.25,143.16,22.0848]
[1641703257954,5.62865993,143.25,143.17,10.63]
[1641703258256,5.62865993,143.25,143.17,10.38]
[1641703258452,5.62865993,143.25,143.19,26.82831213]
[1641703258853,5.62865993,143.25,143.2,3.0]
[1641703259455,5.62865993,143.25,143.2,13.4714]
[1641703260256,5.62865993,143.25,143.2,10.4714]
[1641703260454,14.5874423,143.27,143.2,10.4714]
[1641703262462,25.0607423,143.27,143.2,10.4714]
[1641703263664,10.4733,143.27,143.2,10.4714]
[1641703265568,99.4538,143.29,143.2,16.0034]
[1641703265763,14.61959289,143.31,143.21,13.38]
[1641703265963,14.61959289,143.31,143.21,13.63]
[1641703266167,0.03791311,143.31,143.21,24.0974]
[1641703266466,0.03791311,143.31,143.22,24.6859]
[1641703266665,0.03791311,143.31,143.23,10.12]
[1641703266865,0.03791311,143.31,143.23,22.298]
[1641703267467,0.03791311,143.31,143.25,28.19143562]
[1641703267768,0.03791311,143.31,143.25,74.84308875]
[1641703267967,0.03791311,143.31,143.26,3.51]
[1641703268166,0.03791311,143.31,143.27,10.12]
[1641703268367,0.03791311,143.31,143.29,10.4639]
[1641703268566,0.03791311,143.31,143.3,3.0]
[1641703268770,0.03791311,143.31,143.3,3.26]
[1641703269467,0.03791311,143.31,143.3,3.51]
[1641703269896,0.03791311,143.31,143.3,13.9726]
[1641703270098,0.00791311,143.31,143.3,24.0926]
[1641703270298,0.07962902,143.32,143.31,23.58351386]
[1641703270499,0.07962902,143.32,143.31,60.74481386]
[1641703271499,0.07962902,143.32,143.31,71.20661386]
[1641703271698,0.07962902,143.32,143.31,70.95661386]
[1641703272300,0.07962902,143.32,143.31,71.20661386]
[1641703272701,0.07962902,143.32,143.31,67.69661386]
[1641703272900,0.07962902,143.32,143.31,44.16531386]
[1641703273103,0.07962902,143.32,143.31,10.12]
[1641703274901,0.07962902,143.32,143.31,20.5856]
[1641703276103,0.07962902,143.32,143.31,10.12]
[1641703277102,0.07962902,143.32,143.31,20.586]
[1641703277603,0.07962902,143.32,143.31,10.12]
[1641703279007,0.07962902,143.32,143.27,108.4609]
[1641703279205,0.07962902,143.32,143.28,3.0]
[1641703279407,0.07962902,143.32,143.29,10.4652]
[1641703281610,0.07962902,143.32,143.28,31.15371314]
[1641703282408,0.07962902,143.32,143.29,3.26]
[1641703282608,0.07962902,143.32,143.3,10.4648]
[1641703282810,0.07962902,143.32,143.3,44.8174]
[1641703283613,0.07962902,143.32,143.31,3.0]
[1641703283813,0.07962902,143.32,143.31,13.4643]
[1641703286820,0.07962902,143.32,143.31,10.7243]
[1641703287018,0.07962902,143.32,143.31,13.9743]
[1641703287218,0.07962902,143.32,143.31,13.7243]
[1641703287424,0.07962902,143.32,143.31,29.8763]
[1641703288220,0.07962902,143.32,143.31,29.6263]
[1641703289922,0.07962902,143.32,143.31,13.12]
[1641703290525,0.07962902,143.32,143.31,10.12]
[1641703290722,25.9817,143.42,143.31,10.12]
[1641703290723,25.06132902,143.42,143.31,10.12]
[1641703290925,10.4697,143.32,143.31,10.12]
[1641703291326,121.08262902,143.42,143.31,10.12]
[1641703291927,10.4668,143.36,143.31,10.12]
[1641703292127,34.8891,143.4,143.31,10.12]
[1641703292329,3.93544533,143.41,143.31,10.12]
[1641703292525,3.0,143.39,143.31,10.12]
[1641703292928,10.4689,143.33,143.31,10.12]
[1641703293426,34.8964,143.37,143.31,10.12]
[1641703293629,3.9394338,143.38,143.29,24.571]
[1641703294027,10.4674,143.35,143.3,0.26]
[1641703294227,34.8904,143.39,143.3,10.4668]
[1641703294428,34.8904,143.39,143.3,20.8468]
[1641703294630,124.63165993,143.42,143.3,20.8468]
[1641703294830,124.63165993,143.42,143.31,23.945]
[1641703295029,3.94496047,143.38,143.31,23.945]
[1641703295628,3.94496047,143.41,143.3,10.38]
[1641703295832,10.4658,143.37,143.3,20.5859]
[1641703296051,10.4658,143.37,143.31,3.0]
[1641703296649,23.6958,143.4,143.31,3.0]
[1641703296950,10.4659,143.37,143.31,13.4662]
[1641703297854,23.6958,143.4,143.31,3.0]
[1641703298051,34.8957,143.37,143.31,23.273]
[1641703298452,23.6958,143.4,143.31,23.273]
[1641703298751,3.95553294,143.39,143.31,23.273]
[1641703299252,10.4657,143.37,143.31,33.7392]
[1641703300060,3.95553294,143.39,143.31,33.7392]
[1641703300256,10.4654,143.38,143.31,33.7392]
[1641703300655,10.4654,143.38,143.32,3.0]
[1641703300855,10.4654,143.38,143.32,13.4649]
[1641703301058,10.4654,143.38,143.32,10.4649]
[1641703301957,10.4658,143.37,143.32,10.4649]
[1641703302260,14.42333566,143.37,143.32,10.4649]
[1641703302458,14.42333566,143.37,143.31,33.7393]
[1641703302659,3.95753566,143.37,143.31,33.7393]
[1641703302960,64.21275993,143.4,143.31,33.7393]
[1641703303160,10.4657,143.37,143.31,33.7393]
[1641703303359,10.4657,143.37,143.32,3.0]
[1641703304361,34.8903,143.39,143.31,23.273]
[1641703304560,29.32445993,143.4,143.31,23.273]
[1641703304762,29.32445993,143.4,143.3,10.12]
[1641703304961,29.32445993,143.4,143.27,10.12]
[1641703305163,3.95777324,143.38,143.27,10.12]
[1641703305364,10.4699,143.31,143.27,10.12]
[1641703305968,86.5893306,143.39,143.27,10.12]
[1641703306167,96.7093306,143.39,143.27,10.12]
[1641703306466,34.8992,143.36,143.27,10.12]
[1641703306763,34.8992,143.36,143.27,33.886]
[1641703307165,11.8756306,143.38,143.27,33.886]
[1641703307665,10.4708,143.31,143.27,10.12]
[1641703310270,10.4708,143.31,143.24,22.579]
[1641703310470,10.473,143.28,143.25,3.26]
[1641703310872,34.9097,143.32,143.25,3.26]
[1641703311071,5.62865993,143.36,143.25,0.26]
[1641703311469,5.62865993,143.36,143.25,10.38]
[1641703311669,10.4705,143.32,143.25,20.8508]
[1641703311871,10.4705,143.32,143.26,3.0]
[1641703312271,10.4705,143.32,143.25,20.8508]
[1641703312771,22.891,143.34,143.25,20.5908]
[1641703312971,22.891,143.34,143.26,3.0]
[1641703313171,22.891,143.34,143.26,13.4696]
[1641703313371,22.891,143.34,143.26,10.4696]
[1641703313773,10.4711,143.31,143.25,10.12]
[1641703313972,57.7961,143.34,143.25,10.12]
[1641703315001,10.4715,143.3,143.25,10.12]
[1641703315900,57.7961,143.34,143.25,10.12]
[1641703316108,10.4706,143.32,143.25,10.12]
[1641703316403,10.4706,143.32,143.25,20.5906]
[1641703316803,22.891,143.34,143.25,20.5906]
[1641703317204,22.891,143.34,143.26,3.0]
[1641703317604,22.891,143.34,143.26,23.2207]
[1641703317804,34.9078,143.33,143.26,23.2207]
[1641703318205,10.4707,143.31,143.26,23.2207]
[1641703318704,22.891,143.34,143.26,23.2207]
[1641703319104,22.891,143.34,143.27,3.0]
[1641703319304,33.3601,143.34,143.27,3.0]
[1641703319506,22.891,143.34,143.27,3.0]
[1641703320407,22.891,143.34,143.26,23.2207]
[1641703320708,10.47,143.32,143.26,33.6907]
[1641703320908,22.891,143.34,143.26,23.2207]
[1641703321908,3.95309166,143.33,143.26,23.2207]
[1641703322108,10.471,143.31,143.26,23.2207]
[1641703322511,3.95309166,143.33,143.26,23.2207]
[1641703323112,14.42239166,143.33,143.26,33.6907]
[1641703323314,10.4693,143.33,143.26,33.6907]
[1641703323615,22.891,143.34,143.26,33.6907]
[1641703324815,10.4695,143.33,143.26,33.6907]
[1641703325219,22.891,143.34,143.26,33.6907]
[1641703325416,22.891,143.34,143.26,23.2207]
[1641703326116,22.891,143.34,143.26,33.3407]
[1641703326517,10.4707,143.31,143.26,33.3407]
[1641703328017,10.4707,143.31,143.26,10.12]
[1641703332431,10.4707,143.31,143.23,33.9141]
[1641703332630,10.4736,143.28,143.23,33.9141]
[1641703332833,24.8616,143.32,143.23,33.9141]
[1641703333030,24.8616,143.32,143.2,10.12]
[1641703333234,32.1096,143.32,143.2,10.12]
[1641703333430,34.9229,143.27,143.2,10.12]
[1641703333653,7.611,143.29,143.2,10.12]
[1641703334055,8.86646224,143.29,143.2,10.12]
[1641703334254,10.4775,143.22,143.2,10.12]
[1641703334454,6.06431425,143.21,143.2,10.12]
[1641703334654,6.06431425,143.21,143.15,83.3834]
[1641703334853,6.06431425,143.21,143.14,10.12]
[1641703335053,6.06431425,143.21,143.12,57.286]
[1641703335458,6.06431425,143.21,143.13,26.52539808]
[1641703336454,6.06431425,143.21,143.13,37.00479808]
[1641703337056,6.06431425,143.21,143.13,10.4794]
[1641703337759,10.4798,143.19,143.13,10.4794]
[1641703338558,10.4798,143.19,143.12,57.286]
[1641703338857,10.4806,143.18,143.13,0.26]
[1641703339871,24.1364,143.22,143.13,10.7392]
[1641703340063,10.4792,143.2,143.13,10.7392]
[1641703340260,24.1364,143.22,143.13,10.7392]
[1641703340463,24.1364,143.22,143.13,10.4792]
[1641703341262,24.1364,143.22,143.1,10.12]
[1641703341661,24.1364,143.22,143.11,3.0]
[1641703341862,24.1364,143.22,143.1,11.77345313]
[1641703342261,10.4814,143.17,143.1,22.25485313]
[1641703342461,10.4814,143.17,143.1,20.6014]
[1641703343662,10.4814,143.17,143.1,10.12]
[1641703344463,24.1488,143.25,143.11,0.26]
[1641703344664,23.0913,143.24,143.12,10.12]
[1641703344863,34.9356,143.22,143.13,34.2315]
[1641703345566,10.4803,143.19,143.13,23.7523]
[1641703345967,24.2042,143.21,143.13,23.7523]
[1641703346566,24.2042,143.21,143.13,23.2523]
[1641703346769,34.939,143.2,143.1,33.9366]
[1641703346966,24.2042,143.21,143.09,89.0179]
[1641703347169,24.2042,143.21,143.08,10.12]
[1641703347768,10.4817,143.17,143.08,10.12]
[1641703347967,34.5436,143.17,143.08,10.12]
[1641703351470,34.5436,143.17,143.04,87.1888]
[1641703351670,34.5436,143.17,143.08,3.0]
[1641703352271,34.5436,143.17,143.06,3.0]
[1641703352474,34.5436,143.17,143.06,13.12]
[1641703355574,3.0,143.16,143.06,13.12]
[1641703355773,10.4858,143.11,143.06,13.12]
[1641703356875,10.4853,143.12,143.06,13.12]
[1641703359478,10.4853,143.12,143.06,3.0]
[1641703359876,10.4853,143.12,143.04,77.0688]
[1641703359877,10.4853,143.12,143.02,34.7338]
[1641703360076,10.4888,143.08,143.02,34.7338]
[1641703360879,10.4888,143.08,143.02,10.12]
[1641703361081,18.0998,143.08,142.98,10.12]
[1641703361280,19.35199004,143.08,142.97,94.7]
[1641703361683,19.35199004,143.08,142.96,10.12]
[1641703361884,10.4942,143.06,142.96,10.12]
[1641703362379,10.4942,143.06,142.97,3.0]
[1641703362780,10.4942,143.06,142.97,26.557]
[1641703362980,10.4942,143.06,142.98,10.12]
[1641703363181,24.1511,143.1,142.99,23.36815432]
[1641703363383,24.1511,143.1,143.0,10.38]
[1641703363585,24.1511,143.1,143.0,16.525]
[1641703363781,24.1511,143.1,143.01,3.0]
[1641703363981,24.1511,143.1,143.02,10.12]
[1641703364382,10.4906,143.07,143.02,10.12]
[1641703364983,10.4906,143.07,143.0,24.0077]
[1641703365183,10.4906,143.07,142.99,73.9051]
[1641703371021,33.9313,143.07,142.99,73.9051]
[1641703372722,33.9313,143.07,142.98,10.12]
[1641703373124,33.9313,143.07,142.96,23.5262]
[1641703373322,35.18349004,143.07,142.96,23.5262]
[1641703373522,34.9954,143.06,142.96,23.5262]
[1641703373723,34.9954,143.06,142.94,74.1704]
[1641703373927,25.69129004,143.05,142.94,74.1704]
[1641703374324,1.25219004,143.04,142.94,74.1704]
[1641703374724,11.75059004,143.04,142.94,74.1704]
[1641703375424,23.6569,143.03,142.94,74.1704]
[1641703375826,34.1538,143.03,142.93,35.1081]
[1641703377325,34.1538,143.03,142.93,45.6022]
[1641703377731,34.1538,143.03,142.93,35.1081]
[1641703380328,10.4969,143.03,142.94,30.46699626]
[1641703380530,75.4377,143.05,142.94,40.84699626]
[1641703380729,24.2746,143.07,142.95,27.648]
[1641703380928,24.2746,143.07,142.96,20.6114]
[1641703381536,10.4914,143.06,142.96,10.12]
[1641703382131,24.0938,143.05,142.96,10.12]
[1641703383332,24.0938,143.05,142.95,103.2172]
[1641703383534,24.0938,143.05,142.93,10.12]
[1641703383734,1.25219004,143.04,142.93,10.12]
[1641703383934,11.74799004,143.04,142.93,10.12]
[1641703384334,23.4901,143.03,142.93,10.12]
[1641703385936,33.9854,143.03,142.93,10.12]
[1641703387461,35.23759004,143.03,142.93,10.12]
[1641703388562,35.23759004,143.03,142.91,5.715]
[1641703388764,35.23759004,143.03,142.92,3.0]
[1641703389364,35.23759004,143.03,142.91,5.715]
[1641703389764,45.35759004,143.03,142.91,5.715]
[1641703390464,3.0,143.02,142.91,5.715]
[1641703390664,10.4973,143.01,142.91,5.715]
[1641703390864,24.5075,143.0,142.91,5.715]
[1641703392264,25.75969004,143.0,142.91,5.715]
[1641703392663,35.0048,143.0,142.91,5.715]
[1641703398774,36.25699004,143.0,142.91,5.715]
[1641703401377,36.25699004,143.0,142.89,75.9894]
[1641703402378,36.25699004,143.0,142.87,10.12]
[1641703402678,42.36569004,143.0,142.87,1.97200312]
[1641703402879,35.015,142.98,142.87,1.97200312]
[1641703403079,33.3468,142.97,142.87,1.97200312]
[1641703403278,34.59899004,142.97,142.87,1.97200312]
[1641703403479,1.89728426,142.96,142.83,95.8028]
[1641703403680,13.2694743,142.96,142.83,95.8028]
[1641703403882,1.25219004,142.95,142.83,95.8028]
[1641703404279,25.54749004,142.95,142.83,95.8028]
[1641703404689,1.25219004,142.94,142.83,95.8028]
[1641703404880,11.75729004,142.94,142.83,95.8028]
[1641703405281,11.75729004,142.94,142.83,72.1822]
[1641703405482,24.42089004,142.93,142.83,72.1822]
[1641703406483,3.0,142.92,142.83,72.1822]
[1641703406783,10.5052,142.91,142.83,72.1822]
[1641703409286,10.5052,142.91,142.8,34.8753]
[1641703409488,23.0852,142.9,142.8,34.8753]
[1641703409992,24.3905,142.95,142.81,3.0]
[1641703410187,24.3905,142.95,142.82,34.4254]
[1641703410388,24.3905,142.95,142.83,34.9962]
[1641703410589,47.2944,142.95,142.84,23.4062]
[1641703410788,57.7938,142.95,142.86,10.4989]
[1641703411388,57.7938,142.95,142.85,73.8461]
[1641703411588,57.7938,142.95,142.86,3.0]
[1641703412414,57.7938,142.95,142.86,26.3446]
[1641703412815,57.7938,142.95,142.86,36.8436]
[1641703414015,47.2944,142.95,142.87,10.4987]
[1641703414216,3.65086051,142.98,142.86,26.3446]
[1641703414416,96.4752,142.99,142.86,26.3446]
[1641703414917,96.4752,142.99,142.87,10.12]
[1641703415515,96.4752,142.99,142.88,23.5149]
[1641703415919,106.9724,142.99,142.89,10.4972]
[1641703416117,106.9724,142.99,142.89,13.4972]
[1641703416318,106.9724,142.99,142.89,3.0]
[1641703416720,106.9724,142.99,142.88,23.5149]
[1641703416919,108.2244706,142.99,142.88,23.5149]
[1641703417121,108.2244706,142.99,142.85,106.5244]
[1641703417320,10.12,142.98,142.86,22.8694]
[1641703417521,20.6214,142.98,142.86,22.8694]
[1641703417719,1.2520706,142.97,142.86,22.8694]
[1641703418019,25.4262706,142.97,142.86,22.8694]
[1641703418319,1.25219211,142.96,142.86,22.8694]
[1641703418519,14.75339211,142.96,142.86,22.8694]
[1641703419022,14.75339211,142.96,142.86,33.3688]
[1641703419221,24.7455,142.95,142.86,22.8694]
[1641703419621,24.7455,142.95,142.87,3.0]
[1641703420326,35.2446,142.95,142.87,13.4987]
[1641703420523,35.2446,142.95,142.87,10.4987]
[1641703421526,35.2446,142.95,142.86,33.3688]
[1641703421823,35.2446,142.95,142.87,3.0]
[1641703422226,35.2446,142.95,142.86,33.3688]
[1641703423127,35.2446,142.95,142.87,10.4988]
[1641703423328,35.2446,142.95,142.86,22.8694]
[1641703425431,25.1094393,142.94,142.86,22.8694]
[1641703428835,25.1094393,142.94,142.85,96.4044]
[1641703429036,26.36163141,142.94,142.82,1.97200312]
[1641703429236,23.2831,142.93,142.82,25.38330312]
[1641703429437,33.787,142.93,142.82,25.38330312]
[1641703429638,1.25219211,142.92,142.82,25.38330312]
[1641703430240,1.25219211,142.92,142.82,23.4113]
[1641703430841,65.33281868,142.91,142.82,23.4113]
[1641703431369,66.58501079,142.91,142.82,23.4113]
[1641703432874,3.0,142.9,142.82,23.4113]
[1641703433071,13.505,142.9,142.82,23.4113]
[1641703434273,14.75719211,142.9,142.82,23.4113]
[1641703434675,38.68559211,142.9,142.82,23.4113]
[1641703436875,35.68559211,142.9,142.82,23.4113]
[1641703438379,35.68559211,142.9,142.83,3.0]
[1641703438981,10.505,142.9,142.83,3.0]
[1641703439180,1.25219211,142.92,142.83,3.0]
[1641703439380,1.89728426,142.93,142.83,3.0]
[1641703439781,16.50532356,142.94,142.83,3.0]
[1641703439982,51.51582356,142.94,142.84,22.7832]
[1641703440682,49.6185393,142.94,142.84,22.7832]
[1641703440881,50.87511548,142.94,142.84,22.7832]
[1641703441282,23.2683,142.93,142.84,22.7832]
[1641703441582,35.02747618,142.93,142.84,22.7832]
[1641703443984,33.7709,142.93,142.84,22.7832]
[1641703445887,33.7709,142.93,142.84,33.2839]
[1641703446385,10.5026,142.93,142.84,33.2839]
[1641703446585,89.87326728,142.96,142.85,3.0]
[1641703446586,1.89728426,142.96,142.85,3.0]
[1641703446784,1.89728426,142.96,142.87,10.4987]
[1641703447184,16.50374029,142.97,142.87,10.4987]
[1641703447586,27.00254029,142.97,142.88,24.7834]
[1641703448386,25.18207618,142.96,142.88,24.7834]
[1641703448787,27.07936044,142.96,142.88,24.7834]
[1641703448985,37.58096044,142.96,142.88,24.7834]
[1641703451292,37.58096044,142.96,142.84,10.12]
[1641703451491,3.0,142.95,142.85,23.3927]
[1641703451692,13.5026,142.95,142.85,23.3927]
[1641703451892,1.89728426,142.94,142.85,23.3927]
[1641703452792,12.39988426,142.94,142.85,23.3927]
[1641703457326,24.2542,142.93,142.85,23.3927]
[1641703457495,34.7572,142.93,142.85,23.3927]
[1641703459395,36.65448426,142.93,142.85,23.3927]
[1641703459997,34.7572,142.93,142.85,23.3927]
[1641703462800,36.01377618,142.93,142.85,23.3927]
[1641703463601,37.91106044,142.93,142.85,23.3927]
[1641703464303,37.91106044,142.93,142.86,3.0]
[1641703464902,36.01377618,142.93,142.86,3.0]
[1641703465302,36.01377618,142.93,142.85,23.3927]
[1641703465804,37.91106044,142.93,142.85,33.8929]
[1641703467003,37.91106044,142.93,142.81,89.25270312]
[1641703467203,10.5085,142.91,142.82,24.7963]
[1641703467604,1.25657618,142.9,142.82,24.7963]
[1641703468304,11.76517618,142.9,142.82,24.7963]
[1641703469105,35.28067618,142.9,142.82,24.7963]
[1641703469306,37.17796044,142.9,142.82,24.7963]
[1641703469504,37.17796044,142.9,142.81,77.1607]
[1641703469505,42.88896044,142.9,142.81,77.1607]
[1641703469708,11.76487618,142.89,142.8,24.8177]
[1641703470107,1.25657618,142.88,142.8,24.8177]
[1641703470405,4.25657618,142.88,142.8,24.8177]
[1641703470608,3.0,142.87,142.8,24.8177]
[1641703470807,13.5086,142.87,142.8,24.8177]
[1641703471307,37.6536,142.87,142.8,24.8177]
[1641703471905,37.6536,142.87,142.77,10.12]
[1641703472105,38.91017618,142.87,142.78,26.3569]
[1641703472538,38.91017618,142.87,142.78,23.3569]
[1641703474739,38.91017618,142.87,142.75,76.7067]
[1641703475039,49.03017618,142.87,142.76,23.7823]
[1641703476041,50.92746044,142.87,142.76,23.7823]
[1641703477241,18.2631218,142.86,142.76,23.7823]
[1641703477441,34.1333,142.85,142.76,23.7823]
[1641703477641,35.38987618,142.85,142.76,23.7823]
[1641703481645,3.0,142.84,142.76,23.7823]
[1641703481843,13.5097,142.84,142.76,23.7823]
[1641703488251,14.76627618,142.84,142.76,23.7823]
[1641703488751,13.5097,142.84,142.76,23.7823]
[1641703489152,14.76627618,142.84,142.76,23.7823]
[1641703497262,16.66356044,142.84,142.76,23.7823]
[1641703497863,16.66356044,142.84,142.75,76.7067]
[1641703498363,10.5104,142.82,142.75,76.7067]